bitfinex/quotes_BTCUSD_20250527
["timestamp","ask_amount","ask_price","bid_price","bid_amount"]
[1748379430845,4.63372821,109680.0,109670.0,8.28031656]
[1748379433403,4.63373967,109680.0,109670.0,8.28031656]
[1748379435688,4.64013967,109680.0,109670.0,8.28031656]
[1748379437645,4.64015582,109680.0,109670.0,8.28031656]
[1748379438821,4.68183403,109680.0,109670.0,8.28031656]
[1748379441516,4.67543403,109680.0,109670.0,8.28031656]
[1748379442167,4.63375582,109680.0,109670.0,8.05083481]
[1748379443102,4.64801891,109680.0,109670.0,8.05083481]
[1748379443834,4.64801891,109680.0,109670.0,8.02333996]
[1748379444547,4.61885941,109680.0,109670.0,8.02333996]
[1748379444786,4.64801891,109680.0,109670.0,8.02333996]
[1748379445253,4.28073891,109680.0,109670.0,8.02333996]
[1748379445512,4.65429891,109680.0,109670.0,8.02333996]
[1748379446174,4.25161924,109680.0,109670.0,8.02333996]
[1748379446427,4.62517924,109680.0,109670.0,8.02333996]
[1748379446665,4.34041924,109680.0,109670.0,8.02333996]
[1748379446881,4.62517924,109680.0,109670.0,8.02333996]
[1748379448849,4.64340924,109680.0,109670.0,8.02333996]
[1748379449069,4.62517924,109680.0,109670.0,8.02333996]
[1748379449517,4.32251107,109680.0,109670.0,8.00195621]
[1748379449727,4.69607107,109680.0,109670.0,8.00195621]
[1748379450397,4.69615741,109680.0,109670.0,8.00195621]
[1748379452144,4.64797535,109680.0,109670.0,8.00195621]
[1748379453489,5.14797535,109680.0,109670.0,8.00195621]
[1748379453954,5.20579942,109680.0,109670.0,8.00195621]
[1748379454625,5.20587911,109680.0,109670.0,8.00195621]
[1748379454856,5.17671961,109680.0,109670.0,8.00195621]
[1748379455090,5.17031961,109680.0,109670.0,8.00195621]
[1748379455337,5.11884567,109680.0,109670.0,8.00195621]
[1748379456018,5.11884764,109680.0,109670.0,8.00195621]
[1748379456433,5.17032488,109680.0,109670.0,8.00195621]
[1748379457939,5.56444488,109680.0,109670.0,8.00195621]
[1748379458157,5.60548993,109680.0,109670.0,8.00195621]
[1748379458795,5.60551282,109680.0,109670.0,8.00195621]
[1748379459015,5.55402602,109680.0,109670.0,7.97446204]
[1748379459470,5.60551282,109680.0,109670.0,7.97446204]
[1748379459675,5.60552345,109680.0,109670.0,7.97446204]
[1748379460103,5.61192345,109680.0,109670.0,7.97446204]
[1748379460757,5.32716345,109680.0,109670.0,7.97446204]
[1748379461043,5.57087537,109680.0,109670.0,7.97446204]
[1748379461289,5.61193564,109680.0,109670.0,7.97446204]
[1748379461758,5.64109514,109680.0,109670.0,7.97446204]
[1748379462807,5.61193564,109680.0,109670.0,7.97446204]
[1748379463067,5.64112377,109680.0,109670.0,7.97446204]
[1748379468300,5.26756377,109680.0,109670.0,7.97446204]
[1748379468523,5.60001397,109680.0,109670.0,7.97446204]
[1748379468734,5.64108377,109680.0,109670.0,7.97446204]
[1748379468945,5.5895755,109680.0,109670.0,7.97446204]
[1748379469149,5.5831755,109680.0,109670.0,7.97446204]
[1748379469587,5.63471182,109680.0,109670.0,7.95307891]
[1748379470770,5.24059182,109680.0,109670.0,7.95307891]
[1748379470953,5.19952202,109680.0,109670.0,7.95307891]
[1748379471592,5.11718335,109680.0,109670.0,7.95307891]
[1748379471801,5.19952197,109680.0,109670.0,7.95307891]
[1748379472228,5.14799618,109680.0,109670.0,7.95307891]
[1748379472656,4.83411668,109680.0,109670.0,7.95307891]
[1748379472886,5.11883668,109680.0,109670.0,7.95307891]
[1748379473822,5.11883668,109680.0,109670.0,7.92558771]
[1748379475881,5.11882624,109680.0,109670.0,7.92558771]
[1748379476312,5.11878624,109680.0,109670.0,7.92558771]
[1748379480735,4.8486828,109680.0,109670.0,7.92558771]
[1748379480947,5.1333628,109680.0,109670.0,7.92558771]
[1748379481846,4.7599228,109680.0,109670.0,7.92558771]
[1748379482072,4.68105202,109680.0,109670.0,7.92558771]
[1748379482319,4.58452201,109680.0,109670.0,7.92558771]
[1748379482535,4.93906286,109680.0,109670.0,7.92558771]
[1748379482752,4.88506286,109680.0,109670.0,7.92558771]
[1748379483178,4.93906286,109680.0,109670.0,7.92558771]
[1748379484083,4.93902839,109680.0,109670.0,7.92558771]
[1748379484300,4.93902839,109680.0,109670.0,7.6749419]
[1748379485171,4.96602839,109680.0,109670.0,7.6749419]
[1748379485605,4.9981676,109680.0,109670.0,7.6749419]
[1748379487585,4.97287035,109680.0,109670.0,7.4216337]
[1748379488233,4.97282684,109680.0,109670.0,7.4216337]
[1748379491240,4.82867275,109680.0,109670.0,7.4216337]
[1748379491464,4.8850557,109680.0,109670.0,7.4216337]
[1748379492111,4.85783225,109680.0,109670.0,7.4216337]
[1748379493017,4.82867275,109680.0,109670.0,7.4216337]
[1748379494124,4.85415395,109680.0,109670.0,7.4216337]
[1748379495428,4.84415395,109680.0,109670.0,7.4216337]
[1748379495661,4.84415395,109680.0,109670.0,7.40025567]
[1748379495662,4.9005369,109680.0,109670.0,7.40025567]
[1748379495865,4.86842502,109680.0,109670.0,7.40025567]
[1748379496784,4.86841223,109680.0,109670.0,7.40025567]
[1748379500995,4.86841908,109680.0,109670.0,7.40025567]
[1748379501417,4.86829908,109680.0,109670.0,7.40025567]
[1748379501708,4.92304908,109680.0,109670.0,7.40025567]
[1748379505271,4.92305886,109680.0,109670.0,7.40025567]
[1748379505779,4.92305886,109680.0,109670.0,7.37276804]
[1748379505982,4.60933936,109680.0,109670.0,7.37276804]
[1748379506197,4.89385936,109680.0,109670.0,7.37276804]
[1748379506408,4.8938618,109680.0,109670.0,7.37276804]
[1748379509479,4.8938703,109680.0,109670.0,7.37276804]
[1748379513697,4.89388472,109680.0,109670.0,7.37276804]
[1748379515653,4.89388472,109680.0,109670.0,7.35138856]
[1748379517179,4.93566983,109680.0,109670.0,7.35138856]
[1748379517841,4.96482933,109680.0,109670.0,7.35138856]
[1748379519457,4.96487077,109680.0,109670.0,7.35138856]
[1748379522184,4.9696393,109680.0,109670.0,7.35138856]
[1748379522426,4.9696393,109680.0,109670.0,7.32389981]
[1748379524070,5.41421893,109680.0,109670.0,7.26179981]
[1748379524292,5.45525919,109680.0,109670.0,7.26179981]
[1748379524569,5.41421893,109680.0,109670.0,7.26179981]
[1748379526258,5.41421742,109680.0,109670.0,7.26179981]
[1748379528354,4.92781742,109680.0,109670.0,7.26179981]
[1748379530642,4.64329742,109680.0,109670.0,7.26179981]
[1748379530923,5.06998664,109680.0,109670.0,7.26179981]
[1748379531146,5.01853742,109680.0,109670.0,7.26179981]
[1748379531377,5.04082574,109680.0,109670.0,7.26179981]
[1748379532080,5.01382574,109680.0,109670.0,7.26179981]
[1748379532325,4.98681527,109680.0,109670.0,7.22819542]
[1748379532818,5.01381527,109680.0,109670.0,7.22819542]
[1748379533257,5.04297477,109680.0,109670.0,7.22819542]
[1748379533699,5.04937477,109680.0,109670.0,7.22819542]
[1748379533932,5.10901928,109680.0,109670.0,7.22819542]
[1748379534635,5.10896788,109680.0,109670.0,7.22819542]
[1748379535723,5.09930725,109680.0,109670.0,7.20680937]
[1748379535990,5.79930725,109680.0,109670.0,7.20680937]
[1748379536197,5.78890641,109680.0,109670.0,7.20680937]
[1748379536649,5.84029597,109680.0,109670.0,7.20680937]
[1748379536876,5.78890641,109680.0,109670.0,7.20680937]
[1748379537307,5.84029669,109680.0,109670.0,7.17931205]
[1748379538251,5.84193669,109680.0,109670.0,7.17931205]
[1748379538715,5.8418765,109680.0,109670.0,7.17931205]
[1748379539808,5.8418765,109680.0,109670.0,7.13261305]
[1748379540112,5.5550765,109680.0,109670.0,7.05545305]
[1748379540374,5.8364365,109680.0,109670.0,7.05545305]
[1748379541081,5.78505458,109680.0,109670.0,6.87845305]
[1748379541738,5.78505458,109680.0,109670.0,6.83283305]
[1748379542639,5.79931849,109680.0,109670.0,6.83283305]
[1748379543575,5.8410551,109680.0,109670.0,6.49685742]
[1748379543786,5.8593151,109680.0,109670.0,6.49685742]
[1748379544009,5.8410551,109680.0,109670.0,6.49685742]
[1748379545859,5.9370851,109680.0,109670.0,6.49685742]
[1748379547208,5.93704046,109680.0,109670.0,6.49685742]
[1748379548694,5.89609157,109680.0,109670.0,6.49685742]
[1748379548921,5.85436431,109680.0,109670.0,6.49685742]
[1748379549338,5.85436431,109680.0,109670.0,6.17685742]
[1748379549555,5.15436431,109680.0,109670.0,6.17685742]
[1748379549797,5.12365265,109680.0,109670.0,6.17685742]
[1748379551986,5.12365265,109680.0,109670.0,6.13123742]
[1748379552199,2.75005165,109680.0,109670.0,1.19915574]
[1748379552413,2.75005165,109680.0,109670.0,0.10022531]
[1748379552414,3.45005165,109680.0,109670.0,0.10022531]
[1748379552624,3.45005165,109680.0,109670.0,2e-08]
[1748379553030,3.42305165,109680.0,109670.0,2e-08]
[1748379553238,3.45005165,109680.0,109670.0,2e-08]
[1748379553435,3.42305165,109680.0,109670.0,2e-08]
[1748379553651,3.03926165,109680.0,109670.0,2e-08]
[1748379553861,3.39464165,109680.0,109670.0,2e-08]
[1748379554068,3.42164165,109680.0,109670.0,2e-08]
[1748379554279,2.99444165,109680.0,109670.0,2e-08]
[1748379554482,3.37160165,109680.0,109670.0,2e-08]
[1748379554758,3.34460165,109680.0,109670.0,2e-08]
[1748379554954,2.99444165,109680.0,109670.0,2e-08]
[1748379555143,2.99444165,109680.0,109670.0,0.03110002]
[1748379555144,3.37160165,109680.0,109670.0,0.03110002]
[1748379555391,0.93299766,109670.0,109660.0,7.9739431]
[1748379555618,3.05360498,109670.0,109660.0,7.9739431]
[1748379555827,3.06814583,109670.0,109660.0,7.9739431]
[1748379556061,3.07290317,109670.0,109660.0,7.9739431]
[1748379556483,2.37290317,109670.0,109660.0,7.9739431]
[1748379556889,2.39990317,109670.0,109660.0,7.9739431]
[1748379557289,2.45238437,109670.0,109660.0,7.9739431]
[1748379557752,2.16530437,109670.0,109660.0,7.9739431]
[1748379557973,2.45250437,109670.0,109660.0,7.9739431]
[1748379558394,2.07518437,109670.0,109660.0,8.0361431]
[1748379558605,2.45246437,109670.0,109660.0,8.0361431]
[1748379558832,1.70796092,109670.0,109660.0,8.0361431]
[1748379559048,2.42520092,109670.0,109660.0,8.0361431]
[1748379559264,2.13808092,109670.0,109660.0,8.0361431]
[1748379559477,2.42520092,109670.0,109660.0,8.0361431]
[1748379560859,2.42520092,109670.0,109660.0,7.79877754]
[1748379563526,2.45242437,109670.0,109660.0,7.79877754]
[1748379565839,2.48317468,109670.0,109660.0,7.77739432]
[1748379568060,2.48319344,109670.0,109660.0,7.77739432]
[1748379570556,2.48271344,109670.0,109660.0,7.77739432]
[1748379570787,2.5536782,109670.0,109660.0,7.74990161]
[1748379572314,2.553711,109670.0,109660.0,7.74990161]
[1748379572730,2.2245515,109670.0,109660.0,7.74990161]
[1748379576593,2.22455997,109670.0,109660.0,7.74990161]
[1748379576792,2.25371947,109670.0,109660.0,7.74990161]
[1748379577877,2.25371943,109670.0,109660.0,7.74990161]
[1748379580810,2.25371109,109670.0,109660.0,7.74990161]
[1748379581038,2.26336283,109670.0,109660.0,7.74990161]
[1748379581760,2.26336541,109670.0,109660.0,7.74990161]
[1748379583087,2.21188785,109670.0,109660.0,7.35374123]
[1748379583734,1.92524785,109670.0,109660.0,7.38624123]
[1748379583958,2.21180785,109670.0,109660.0,7.38624123]
[1748379584408,2.21181095,109670.0,109660.0,7.0214808]
[1748379584607,2.21181095,109670.0,109660.0,6.62422037]
[1748379584820,2.21181095,109670.0,109660.0,6.25945994]
[1748379585034,2.21181145,109670.0,109660.0,5.89469951]
[1748379585243,2.21181145,109670.0,109660.0,5.52993912]
[1748379586011,2.21181145,109670.0,109660.0,5.5085535]
[1748379587827,2.21181145,109670.0,109660.0,5.5401535]
[1748379588621,2.21181145,109670.0,109660.0,5.1753931]
[1748379589337,2.21181606,109670.0,109660.0,5.1753931]
[1748379590419,2.21181606,109670.0,109660.0,5.1437931]
[1748379590770,2.21181968,109670.0,109660.0,5.1437931]
[1748379593670,2.21181968,109670.0,109660.0,5.1737931]
[1748379594106,2.21181968,109670.0,109660.0,5.1713931]
[1748379594522,2.21181968,109670.0,109660.0,5.1105931]
[1748379594764,2.21181968,109670.0,109660.0,4.38107192]
[1748379594981,2.21181968,109670.0,109660.0,2.43213515]
[1748379595190,2.21181968,109670.0,109660.0,1.33785338]
[1748379595191,2.24361968,109670.0,109660.0,1.33785338]
[1748379595445,2.27431968,109670.0,109660.0,0.24357161]
[1748379595676,2.27431968,109670.0,109660.0,4e-08]
[1748379597025,2.97431968,109670.0,109660.0,4e-08]
[1748379597521,2.94709623,109670.0,109660.0,4e-08]
[1748379598555,0.60992866,109650.0,109640.0,0.0607427]
[1748379598772,5.38358757,109650.0,109640.0,0.0607427]
[1748379598985,5.40943079,109650.0,109640.0,0.0607427]
[1748379599398,5.4141862,109650.0,109640.0,0.0607427]
[1748379599610,5.38696275,109650.0,109640.0,0.0607427]
[1748379599809,5.38956059,109650.0,109640.0,0.06084104]
[1748379600013,5.44378404,109650.0,109640.0,0.06084104]
[1748379600225,5.41656059,109650.0,109640.0,0.06084104]
[1748379600437,5.06918404,109650.0,109640.0,0.06084104]
[1748379600694,5.41636059,109650.0,109640.0,0.06084104]
[1748379601360,5.40684784,109650.0,109640.0,0.06084104]
[1748379602494,5.46323079,109650.0,109640.0,0.06084104]
[1748379602708,5.43600734,109650.0,109640.0,0.06084104]
[1748379603128,5.03244784,109650.0,109640.0,0.06084104]
[1748379603535,5.40660784,109650.0,109640.0,0.06084104]
[1748379604605,5.43576734,109650.0,109640.0,0.06084104]
[1748379604820,5.40660784,109650.0,109640.0,0.06084104]
[1748379605921,5.40660784,109650.0,109640.0,0.03945241]
[1748379606340,5.40657536,109650.0,109640.0,0.03945241]
[1748379610572,5.40656347,109650.0,109640.0,0.03945241]
[1748379611090,5.40652347,109650.0,109640.0,0.03945241]
[1748379615646,5.43030233,109650.0,109640.0,0.03945241]
[1748379616553,5.47208364,109650.0,109640.0,0.03945241]
[1748379617007,5.51308556,109650.0,109640.0,0.03945241]
[1748379617910,5.54030901,109650.0,109640.0,0.03945241]
[1748379618140,5.51308556,109650.0,109640.0,0.03945241]
[1748379618808,5.54030901,109650.0,109640.0,0.03945241]
[1748379619035,5.54031883,109650.0,109640.0,0.03945241]
[1748379619257,5.47131046,109650.0,109640.0,0.03570508]
[1748379619494,5.49853391,109650.0,109640.0,0.03570508]
[1748379619726,5.47131046,109650.0,109640.0,0.03570508]
[1748379621059,5.42677434,109650.0,109640.0,0.03570508]
[1748379621274,5.42677434,109650.0,109640.0,9.834e-05]
[1748379621492,5.45593384,109650.0,109640.0,9.834e-05]
[1748379621710,5.45593384,109650.0,109640.0,0.03239834]
[1748379622390,5.42893384,109650.0,109640.0,0.03239834]
[1748379623088,5.79393434,109650.0,109640.0,0.06539834]
[1748379623527,5.76693434,109650.0,109640.0,0.06234394]
[1748379623766,5.82093434,109650.0,109640.0,0.06234394]
[1748379624545,5.79545314,109650.0,109640.0,0.06234394]
[1748379624963,5.76822969,109650.0,109640.0,0.06234394]
[1748379626633,5.76822969,109650.0,109640.0,0.05928905]
[1748379627713,5.79545314,109650.0,109640.0,0.05928905]
[1748379627951,5.76822969,109650.0,109640.0,0.05928905]
[1748379628291,5.79545314,109650.0,109640.0,0.05928905]
[1748379628497,5.82101032,109650.0,109640.0,0.05928905]
[1748379628732,5.79378687,109650.0,109640.0,0.05928905]
[1748379629108,5.79378687,109650.0,109640.0,0.02628905]
[1748379629626,5.82101032,109650.0,109640.0,0.02628905]
[1748379629830,5.82101032,109650.0,109640.0,0.05898905]
[1748379630200,5.82101032,109650.0,109640.0,0.02628905]
[1748379630803,5.82101032,109650.0,109640.0,0.05948905]
[1748379636498,5.89285389,109650.0,109640.0,0.03198763]
[1748379636703,0.6054244,109630.0,109620.0,0.002]
[1748379636935,6.28586563,109630.0,109620.0,0.00213405]
[1748379637107,6.3269191,109630.0,109620.0,0.00213405]
[1748379637534,6.33168274,109630.0,109620.0,0.00213405]
[1748379637747,6.81808274,109630.0,109620.0,0.00213405]
[1748379637948,1.14074765,109590.0,109580.0,0.08714057]
[1748379638156,5.88389235,109590.0,109580.0,0.08714057]
[1748379638361,5.81939235,109590.0,109580.0,0.09690529]
[1748379638563,5.8376416,109590.0,109580.0,0.09690529]
[1748379639717,5.8376416,109590.0,109580.0,0.14500529]
[1748379639933,5.8446416,109590.0,109580.0,0.14500529]
[1748379640422,5.8516416,109590.0,109580.0,0.14500529]
[1748379640655,6.1516416,109590.0,109580.0,0.14500529]
[1748379643272,6.1446416,109590.0,109580.0,0.14500529]
[1748379643501,6.1526416,109590.0,109580.0,0.14500529]
[1748379643725,6.4608016,109590.0,109580.0,0.14500529]
[1748379643961,6.4698016,109590.0,109580.0,0.14500529]
[1748379644202,6.7546016,109590.0,109580.0,0.14500529]
[1748379645296,1.4198016,109590.0,109580.0,0.14500529]
[1748379645520,0.22274765,109590.0,109580.0,0.19293529]
[1748379645740,0.2202724,109590.0,109580.0,0.24293529]
[1748379645950,0.5000724,109590.0,109580.0,0.24293529]
[1748379646164,0.2152724,109590.0,109580.0,0.24293529]
[1748379646645,0.2152724,109590.0,109580.0,0.69700533]
[1748379646866,0.5000724,109590.0,109580.0,0.69700533]
[1748379647073,0.5000724,109590.0,109580.0,0.80260013]
[1748379647287,0.5000724,109590.0,109580.0,0.89650013]
[1748379647710,0.4920724,109590.0,109580.0,0.89650013]
[1748379647942,0.4980724,109590.0,109580.0,0.89650013]
[1748379648360,0.4890724,109590.0,109580.0,0.44243009]
[1748379648780,0.4950724,109590.0,109580.0,0.44243009]
[1748379651084,0.4950724,109590.0,109580.0,0.4515189]
[1748379652579,0.2102724,109590.0,109580.0,0.4515189]
[1748379652792,0.4949924,109590.0,109580.0,0.4515189]
[1748379655896,0.2102724,109590.0,109580.0,0.4515189]
[1748379656123,0.4949924,109590.0,109580.0,0.4515189]
[1748379658606,0.4949924,109590.0,109580.0,0.7508189]
[1748379660943,0.2102724,109590.0,109580.0,0.7508189]
[1748379661358,0.4949524,109590.0,109580.0,0.7508189]
[1748379663339,0.4949124,109590.0,109580.0,1.20488894]
[1748379663544,0.4949124,109590.0,109580.0,0.7508189]
[1748379665429,0.2102724,109590.0,109580.0,0.7508189]
[1748379665634,0.2102724,109590.0,109580.0,1.65895898]
[1748379665858,0.4949124,109590.0,109580.0,1.65895898]
[1748379669940,0.2102724,109590.0,109580.0,1.65895898]
[1748379670143,0.4948724,109590.0,109580.0,1.65895898]
[1748379670374,0.2102724,109590.0,109580.0,1.65895898]
[1748379670617,0.4948724,109590.0,109580.0,1.65895898]
[1748379670879,0.4948724,109590.0,109580.0,0.7508189]
[1748379671117,0.4948724,109590.0,109580.0,1.20488894]
[1748379671365,0.2102724,109590.0,109580.0,1.20488894]
[1748379671618,0.4948724,109590.0,109580.0,1.20488894]
[1748379672102,0.4948724,109590.0,109580.0,1.65895898]
[1748379675425,0.4948724,109590.0,109580.0,0.7508189]
[1748379675636,0.4948724,109590.0,109580.0,1.65895898]
[1748379680828,0.2102724,109590.0,109580.0,1.74771898]
[1748379681036,0.4947924,109590.0,109580.0,1.74771898]
[1748379681252,0.2102724,109590.0,109580.0,2.44405961]
[1748379681449,0.02112425,109590.0,109580.0,2.96638022]
[1748379681658,0.31476875,109590.0,109580.0,2.81168022]
[1748379681863,0.50639182,109590.0,109580.0,2.81168022]
[1748379682086,0.51551674,109590.0,109580.0,2.80255506]
[1748379682287,0.22499674,109590.0,109580.0,2.80255506]
[1748379682480,0.51051674,109590.0,109580.0,2.80355506]
[1748379682838,0.49439249,109590.0,109580.0,2.79342965]
[1748379683052,0.48014332,109590.0,109580.0,2.33935978]
[1748379683249,0.48114332,109590.0,109580.0,2.34035978]
[1748379683692,0.48214332,109590.0,109580.0,2.34135978]
[1748379683918,0.48214332,109590.0,109580.0,2.0382808]
[1748379684115,0.48214332,109590.0,109580.0,2.0372808]
[1748379685233,0.35502258,109590.0,109580.0,2.5319808]
[1748379686362,1.01744875,109590.0,109580.0,0.09827404]
[1748379686593,6.69692875,109590.0,109580.0,0.08918523]
[1748379686822,6.75331133,109590.0,109580.0,0.08918523]
[1748379687298,6.7241522,109590.0,109580.0,0.08918523]
[1748379687721,6.7191522,109590.0,109580.0,0.08818523]
[1748379687930,6.7271522,109590.0,109580.0,0.08818523]
[1748379688340,6.7261522,109590.0,109580.0,0.08718523]
[1748379688549,6.7261522,109590.0,109580.0,0.08818523]
[1748379688748,6.7271522,109590.0,109580.0,0.08818523]
[1748379689154,6.7261522,109590.0,109580.0,0.08718523]
[1748379689361,6.7331522,109590.0,109580.0,0.17582523]
[1748379689750,6.7331522,109590.0,109580.0,0.19341375]
[1748379691056,6.6599558,109590.0,109580.0,0.19341375]
[1748379693595,6.63273235,109590.0,109580.0,0.19341375]
[1748379694888,6.34825235,109590.0,109580.0,0.19341375]
[1748379695111,1.28277235,109590.0,109580.0,0.19341375]
[1748379696231,0.65825235,109590.0,109580.0,0.19341375]
[1748379696451,0.94277235,109590.0,109580.0,0.19341375]
[1748379696668,1.28277235,109590.0,109580.0,0.19341375]
[1748379696854,0.99825235,109590.0,109580.0,0.19341375]
[1748379697105,1.28277235,109590.0,109580.0,0.19341375]
[1748379697776,0.2671984,109590.0,109580.0,0.19341375]
[1748379698019,0.5535984,109590.0,109580.0,0.24341375]
[1748379698231,0.8612984,109590.0,109580.0,0.24341375]
[1748379698453,0.4888984,109590.0,109580.0,0.24341375]
[1748379698880,0.8288984,109590.0,109580.0,0.24341375]
[1748379700004,1.91477148,109590.0,109580.0,0.08718523]
[1748379700224,1.94203493,109590.0,109580.0,0.08718523]
[1748379700432,1.9128758,109590.0,109580.0,0.08718523]
[1748379700647,1.88565235,109590.0,109580.0,0.08718523]
[1748379701079,1.88565235,109590.0,109580.0,0.10538584]
[1748379701503,1.88565235,109590.0,109580.0,0.1076667]
[1748379701930,1.58565235,109590.0,109580.0,0.1076667]
[1748379702146,1.88565235,109590.0,109580.0,0.1076667]
[1748379702388,1.88565235,109590.0,109580.0,0.2001467]
[1748379702598,1.88565235,109590.0,109580.0,0.19786584]
[1748379703712,1.28621235,109590.0,109580.0,0.19786584]
[1748379704169,0.9001984,109590.0,109580.0,0.19786584]
[1748379704584,0.6080384,109590.0,109580.0,0.19786584]
[1748379704799,0.9001984,109590.0,109580.0,0.19786584]
[1748379705231,0.6030384,109590.0,109580.0,0.19786584]
[1748379705444,0.8951984,109590.0,109580.0,0.19786584]
[1748379707392,0.6030384,109590.0,109580.0,0.19786584]
[1748379707612,0.8950784,109590.0,109580.0,0.19786584]
[1748379710451,0.8951584,109590.0,109580.0,0.19786584]
[1748379710661,0.8951984,109590.0,109580.0,0.19786584]
[1748379715208,0.8949584,109590.0,109580.0,0.19786584]
[1748379715410,0.8949184,109590.0,109580.0,0.19786584]
[1748379715819,0.6030384,109590.0,109580.0,0.19786584]
[1748379716043,0.8293384,109590.0,109580.0,0.21240669]
[1748379717831,0.02416425,109590.0,109580.0,0.30346064]
[1748379718037,0.21578765,109590.0,109580.0,1.13774814]
[1748379718260,0.22491248,109590.0,109580.0,1.32938894]
[1748379718465,0.21578798,109590.0,109580.0,1.13774814]
[1748379718676,0.21578798,109590.0,109580.0,1.32938877]
[1748379718887,0.21578798,109590.0,109580.0,1.33851427]
[1748379719117,0.20778798,109590.0,109580.0,1.33851427]
[1748379719336,0.20778798,109590.0,109580.0,1.34763968]
[1748379719545,0.21378798,109590.0,109580.0,1.34763968]
[1748379719758,0.21378798,109590.0,109580.0,1.27444328]
[1748379719759,0.20678798,109590.0,109580.0,1.27444328]
[1748379719979,0.21278798,109590.0,109580.0,1.27444328]
[1748379720180,0.21278798,109590.0,109580.0,0.66938218]
[1748379720403,0.21278798,109590.0,109580.0,0.66025677]
[1748379720615,0.20078798,109590.0,109580.0,0.66025677]
[1748379720831,0.20378798,109590.0,109580.0,1.2744432]
[1748379721036,0.20778798,109590.0,109580.0,1.13245989]
[1748379721241,0.20778798,109590.0,109580.0,1.22351384]
[1748379721242,0.49922798,109590.0,109580.0,1.22351384]
[1748379723048,0.49898798,109590.0,109580.0,1.22351384]
[1748379723254,0.49898798,109590.0,109580.0,1.23805469]
[1748379723467,0.48986323,109590.0,109580.0,0.32619746]
[1748379723690,0.48986323,109590.0,109580.0,0.33619746]
[1748379725958,0.48986323,109590.0,109580.0,0.43222746]
[1748379726598,0.22444063,109580.0,109570.0,0.09609]
[1748379726816,0.25704063,109580.0,109570.0,0.18861466]
[1748379727249,0.25704063,109580.0,109570.0,0.23861466]
[1748379727910,0.25704063,109580.0,109570.0,0.30208013]
[1748379727911,0.25904063,109580.0,109570.0,0.30308013]
[1748379728169,0.26404063,109580.0,109570.0,0.30308013]
[1748379728636,0.55488063,109580.0,109570.0,0.30308013]
[1748379729092,0.55288063,109580.0,109570.0,0.30208013]
[1748379730007,0.55688063,109580.0,109570.0,0.30188013]
[1748379730283,0.26604063,109580.0,109570.0,0.30188013]
[1748379730496,0.55684063,109580.0,109570.0,0.30188013]
[1748379730952,0.55684063,109580.0,109570.0,0.20585013]
[1748379733956,0.55648063,109580.0,109570.0,0.30188013]
[1748379734380,0.20064063,109580.0,109570.0,0.40747493]
[1748379734598,0.49120063,109580.0,109570.0,0.40747493]
[1748379736412,0.20064063,109580.0,109570.0,0.40747493]
[1748379736861,0.49092063,109580.0,109570.0,0.40747493]
[1748379738424,0.49092063,109580.0,109570.0,0.70677493]
[1748379739373,0.20064063,109580.0,109570.0,0.71677493]
[1748379739611,0.20976613,109580.0,109570.0,1.28444206]
[1748379739845,0.49060063,109580.0,109570.0,1.47610035]
[1748379740068,0.49060063,109580.0,109570.0,1.29356864]
[1748379740295,0.49060063,109580.0,109570.0,0.72590151]
[1748379740545,0.49060063,109580.0,109570.0,0.71677493]
[1748379746782,0.48992063,109580.0,109570.0,0.90843314]
[1748379746996,0.48992063,109580.0,109570.0,0.91755955]
[1748379747216,0.49928596,109580.0,109570.0,1.49435293]
[1748379747433,0.02725091,109580.0,109570.0,1.49435293]
[1748379747659,0.50845171,109580.0,109570.0,1.49435293]
[1748379747885,0.50845171,109580.0,109570.0,1.51260517]
[1748379748100,0.50845171,109580.0,109570.0,0.94493804]
[1748379748326,0.50845171,109580.0,109570.0,1.51260517]
[1748379748995,0.58266638,109580.0,109570.0,0.09613466]
[1748379749216,0.58266638,109580.0,109570.0,0.09238466]
[1748379749478,0.61466638,109580.0,109570.0,0.09238466]
[1748379750565,0.60966638,109580.0,109570.0,0.09238466]
[1748379750799,0.61566638,109580.0,109570.0,0.09238466]
[1748379751248,0.61166638,109580.0,109570.0,0.09238466]
[1748379751680,0.61766638,109580.0,109570.0,0.09238466]
[1748379752119,0.61766638,109580.0,109570.0,0.11330294]
[1748379756025,0.61766638,109580.0,109570.0,0.02102294]
[1748379756230,0.61766638,109580.0,109570.0,0.11330294]
[1748379766006,0.61766638,109580.0,109570.0,0.11558403]
[1748379766223,0.90658638,109580.0,109570.0,0.11330294]
[1748379768829,0.27766638,109580.0,109570.0,0.25933294]
[1748379769045,0.56626638,109580.0,109570.0,0.25933294]
[1748379769466,0.56622638,109580.0,109570.0,0.25933294]
[1748379771790,0.56622638,109580.0,109570.0,0.65349294]
[1748379777757,0.56622638,109580.0,109570.0,0.48558466]
[1748379784635,0.56622638,109580.0,109570.0,0.39426466]
[1748379784836,0.56622638,109580.0,109570.0,0.48558466]
[1748379788854,0.90622638,109580.0,109570.0,0.48558466]
[1748379792658,0.61766638,109580.0,109570.0,0.48558466]
[1748379792875,0.90426638,109580.0,109570.0,0.48558466]
[1748379793331,0.90426638,109580.0,109570.0,0.53934313]
[1748379793979,0.90426638,109580.0,109570.0,0.53794313]
[1748379807985,0.61766638,109580.0,109570.0,0.53794313]
[1748379808194,0.90306638,109580.0,109570.0,0.53794313]
[1748379810367,0.90306638,109580.0,109570.0,0.30034505]
[1748379814651,0.90306638,109580.0,109570.0,0.49729621]
[1748379814652,0.61766638,109580.0,109570.0,0.49729621]
[1748379814859,0.90294638,109580.0,109570.0,0.49729621]
[1748379815749,0.61766638,109580.0,109570.0,0.49729621]
[1748379815969,0.87004638,109580.0,109570.0,0.49729621]
[1748379817742,0.90104638,109580.0,109570.0,0.49729621]
[1748379824002,0.61576638,109580.0,109570.0,0.49729621]
[1748379824208,0.90104638,109580.0,109570.0,0.49729621]
[1748379826675,0.90104638,109580.0,109570.0,0.59332621]
[1748379826880,0.90104638,109580.0,109570.0,0.49729621]
[1748379829282,0.90104638,109580.0,109570.0,0.49229621]
[1748379833015,0.90104638,109580.0,109570.0,0.40237621]
[1748379833263,0.90104638,109580.0,109570.0,0.48324]
[1748379837279,0.61576638,109580.0,109570.0,0.39416]
[1748379837490,0.61576638,109580.0,109570.0,0.48324]
[1748379837491,0.90100638,109580.0,109570.0,0.48324]
[1748379837720,0.90100638,109580.0,109570.0,0.536764]
[1748379838379,0.06569359,109570.0,109560.0,0.0187]
[1748379838604,0.55539847,109530.0,109520.0,0.002]
[1748379838833,5.95824847,109530.0,109520.0,0.00103198]
[1748379839071,6.42710635,109530.0,109520.0,0.00152574]
[1748379839320,0.25089429,109510.0,109500.0,0.002]
[1748379839560,5.95590267,109510.0,109500.0,0.002]
[1748379839800,0.57383099,109490.0,109480.0,0.012]
[1748379840017,1.26488494,109490.0,109480.0,0.012]
[1748379840240,6.45359153,109490.0,109480.0,0.012]
[1748379840473,6.68063934,109490.0,109480.0,0.012]
[1748379840701,6.67955934,109490.0,109480.0,0.012]
[1748379840927,6.98087934,109490.0,109480.0,0.012]
[1748379841219,1.94423934,109490.0,109480.0,0.012]
[1748379841458,6.40323934,109490.0,109480.0,0.012]
[1748379841681,6.40373638,109490.0,109480.0,0.012]